fUSD/lending_fUSD_20250820
["ID","MTS","AMOUNT","RATE_DAILY","PERIOD"]
[380318697,1755667688990,2500.0,0.000157,60]
[380318709,1755667832041,-890.8394,9.802e-05,2]
[380318710,1755667832053,-33.815358,9.802e-05,2]
[380318712,1755667832063,-458.96,9.851e-05,2]
[380318713,1755667832072,-449.08334851,9.94e-05,2]
[380318737,1755667832279,-558.49665149,9.94e-05,2]
[380318740,1755667832288,-151.0,9.94e-05,2]
[380318742,1755667832299,-250.0,9.949e-05,2]
[380318744,1755667832308,-86.60835176,9.957e-05,2]
[380318755,1755667837770,-154.15624355,9.957e-05,2]
[380318756,1755667837780,-387.33,9.978e-05,2]
[380318757,1755667837789,-250.0,9.989e-05,2]
[380318758,1755667837799,-312.35346081,9.998e-05,2]
[380318759,1755667837809,-3060.98,0.00010047,2]
[380318760,1755667837819,-166.44,0.00010114,2]
[380318761,1755667837831,-245.0,0.00010169,2]
[380318762,1755667837840,-1200.0,0.00010169,2]
[380318763,1755667837849,-300.0,0.00010169,2]
[380318764,1755667837859,-300.0,0.00010169,2]
[380318765,1755667837869,-300.0,0.00010169,2]
[380318766,1755667837878,-470.1540118,0.0001017,2]
[380318767,1755667837887,-9999.99,0.0001017,2]
[380318768,1755667837896,-150.0,0.00010181,2]
[380318769,1755667837906,-387.77,0.00010182,2]
[380318770,1755667837915,-289.09,0.00010182,2]
[380318771,1755667837924,-22151.22,0.00010182,2]
[380318772,1755667837933,-1200.0,0.00010426,2]
[380318773,1755667837943,-152.0,0.00010437,2]
[380318774,1755667837952,-277.35679052,0.00010464,2]
[380318775,1755667837961,-539.25,0.00010676,2]
[380318776,1755667837971,-539.18,0.00010676,2]
[380318777,1755667837980,-539.18,0.00010676,2]
[380318778,1755667837989,-250.0,0.00010818,2]
[380318779,1755667837999,-250.0,0.00010836,2]
[380318780,1755667838008,-1720.1306,0.0001089,2]
[380318781,1755667838017,-929.01,0.00010896,2]
[380318782,1755667838027,-346.27345152,0.000109,2]
[380318783,1755667838036,-697.53417236,0.000109,2]
[380318784,1755667838045,-167.74,0.0001093,2]
[380318786,1755667838054,-250.0,0.00010934,2]
[380318788,1755667838064,-305.0,0.00010934,2]
[380318789,1755667838073,-635.05762361,0.00010949,2]
[380318791,1755667838082,-500.0,0.00010949,2]
[380318792,1755667838091,-500.0,0.00010949,2]
[380318793,1755667838100,-462.71493664,0.00010949,2]
[380318794,1755667838109,-500.0,0.00010949,2]
[380318796,1755667838121,-500.0,0.00010949,2]
[380318798,1755667838131,-500.0,0.00010949,2]
[380318800,1755667838140,-500.0,0.00010949,2]
[380318802,1755667838149,-500.0,0.00010949,2]
[380318804,1755667838158,-500.0,0.00010949,2]
[380318805,1755667838168,-500.0,0.00010949,2]
[380318806,1755667838180,-500.0,0.00010949,2]
[380318807,1755667838189,-296.74409359,0.00010949,2]
[380318808,1755667838199,-500.0,0.00010949,2]
[380318809,1755667838208,-500.0,0.00010949,2]
[380318810,1755667838218,-500.0,0.00010949,2]
[380318811,1755667838230,-500.0,0.00010949,2]
[380318812,1755667838239,-500.0,0.00010949,2]
[380318813,1755667838248,-500.0,0.00010949,2]
[380318814,1755667838257,-500.0,0.00010949,2]
[380318815,1755667838267,-4506.9792422,0.0001095,2]
[380318816,1755667838276,-2910.2655213,0.0001095,2]
[380318817,1755667838285,-6218.7812206,0.0001095,2]
[380318818,1755667838294,-3089.6773975,0.00010953,2]
[380318819,1755667838303,-2930.09272694,0.0001098,2]
[380318820,1755667838312,-160.0,0.00010982,2]
[380318821,1755667838323,-151.0,0.00010982,2]
[380318822,1755667838332,-322.6107,0.00010982,2]
[380318823,1755667838341,-500.0,0.00010982,2]
[380318824,1755667838351,-159.96119046,0.00010989,2]
[380318825,1755667838360,-500.0,0.00010989,2]
[380318826,1755667838369,-500.0,0.00010989,2]
[380318827,1755667838379,-192.83034479,0.00010989,2]
[380318828,1755667838388,-500.0,0.00010989,2]
[380318829,1755667838397,-259.2820123,0.00010989,2]
[380318830,1755667838406,-500.0,0.00010989,2]
[380318831,1755667838415,-500.0,0.00010989,2]
[380318832,1755667838425,-496.76743727,0.00010989,2]
[380318833,1755667838434,-500.0,0.00010989,2]
[380318834,1755667838444,-896.26,0.00010989,2]
[380318835,1755667838453,-8413.38178513,0.00010989,2]
[380318836,1755667838463,-229734.3974745,0.0001099,2]
[380318837,1755667838472,-564174.3047188,0.0001099,2]
[380318838,1755667838481,-159.23108756,0.00010998,2]
[380318839,1755667838490,-500.0,0.00010998,2]
[380318840,1755667838500,-1000.0,0.00010998,2]
[380318841,1755667838509,-1671.38576165,0.00010999,2]
[380318842,1755667838518,-160.0,0.00011,3]
[380318843,1755667838527,-161.53,0.00011,3]
[380318844,1755667838537,-173.44,0.00011,2]
[380318845,1755667838545,-7023957.32780818,0.00011,2]
[380318847,1755667839583,-694.46353124,0.00011,2]
[380318848,1755667839622,-6709.37740274,0.00011,2]
[380318851,1755667839714,-10118.76110562,0.00011,2]
[380318852,1755667841049,-474.29,0.00011,2]
[380318853,1755667841162,-541.62445978,0.00011,2]
[380318854,1755667841173,-19398.023527,0.00011,2]
[380318857,1755667842835,-363.86,0.00011,2]
[380318858,1755667842863,-253.88923684,0.00011,2]
[380318859,1755667842877,-8556.55260583,0.00011,2]
[380318866,1755667845797,-436.11844263,0.00010949,2]
[380318867,1755667845861,-87.92480447,0.00010949,2]
[380318868,1755667845871,-4263.27176053,0.00011,2]
[380318869,1755667897570,537.0,0.000221,120]
[380318873,1755668279625,170.0,0.00010155,7]
[380318878,1755668905659,3177.59092254,0.00022,120]
[380318880,1755668945598,-192.0,9.887e-05,2]
[380318881,1755668945716,-155.18,9.887e-05,2]
[380318882,1755668959690,-144.82,9.887e-05,2]
[380318883,1755668959719,-250.0,9.887e-05,2]
[380318884,1755668959746,-150.0,9.888e-05,2]
[380318885,1755668959775,-150.0,9.888e-05,2]
[380318886,1755668959807,-150.0,9.888e-05,2]
[380318887,1755668959834,-150.0,9.888e-05,2]
[380318888,1755668959860,-150.0,9.888e-05,2]
[380318889,1755668959888,-152.46090693,9.888e-05,2]
[380318890,1755668959915,-150.0,9.888e-05,2]
[380318891,1755668959941,-150.74955485,9.888e-05,2]
[380318892,1755668960516,-138.57955422,9.888e-05,2]
[380318903,1755669032013,-13.6034211,9.888e-05,2]
[380318904,1755669032023,-150.26412688,9.888e-05,2]
[380318905,1755669032033,-151.19867099,9.888e-05,2]
[380318906,1755669032042,-150.0,9.888e-05,2]
[380318907,1755669032052,-150.0,9.888e-05,2]
[380318908,1755669032062,-464.12547427,0.0001,2]
[380318909,1755669032072,-150.0,0.0001001,2]
[380318910,1755669032081,-274.30815469,0.00010072,2]
[380318911,1755669032136,-725.69184531,0.00010072,2]
[380318912,1755669032145,-250.0,0.00010089,2]
[380318913,1755669032155,-150.0,0.00010132,2]
[380318914,1755669032165,-713.79,0.00010142,2]
[380318915,1755669032176,-743.43954183,0.00010145,2]
[380318916,1755669032228,-456.56045817,0.00010145,2]
[380318917,1755669032238,-300.0,0.00010145,2]
[380318919,1755669032248,-3110.99,0.00010146,2]
[380318920,1755669032257,-299.99,0.00010146,2]
[380318921,1755669032266,-150.0,0.00010162,2]
[380318922,1755669032276,-150.0,0.00010162,2]
[380318923,1755669032286,-150.0,0.00010254,2]
[380318924,1755669032296,-150.0,0.00010254,2]
[380318925,1755669032306,-150.0,0.00010254,2]
[380318926,1755669032316,-150.0,0.00010376,2]
[380318927,1755669032326,-150.0,0.00010437,2]
[380318928,1755669032336,-150.0,0.00010437,2]
[380318929,1755669032345,-150.0,0.00010437,2]
[380318930,1755669032356,-150.0,0.00010498,2]
[380318931,1755669032366,-331.88,0.00010578,2]
[380318932,1755669032376,-331.88,0.00010578,2]
[380318933,1755669032386,-173.52,0.00010578,2]
[380318934,1755669032396,-150.0,0.0001062,2]
[380318936,1755669032406,-150.0,0.0001062,2]
[380318938,1755669032415,-150.0,0.0001062,2]
[380318939,1755669032426,-173.44,0.00010678,2]
[380318942,1755669032436,-150.0,0.00010712,2]
[380318943,1755669032446,-150.0,0.00010712,2]
[380318945,1755669032455,-150.0,0.00010742,2]
[380318947,1755669032465,-150.0,0.00010864,2]
[380318949,1755669032475,-250.0,0.00010876,2]
[380318951,1755669032484,-1000.0,0.0001089,2]
[380318953,1755669032493,-277.35679052,0.00010893,2]
[380318955,1755669032503,-318.46217508,0.000109,2]
[380318958,1755669032513,-1432.61636712,0.000109,2]
[380318959,1755669032524,-150.0,0.000109,2]
[380318962,1755669032534,-167.11498615,0.000109,2]
[380318963,1755669032543,-378.32072297,0.000109,2]
[380318965,1755669032552,-167.11498613,0.00010911,2]
[380318968,1755669032561,-167.11498613,0.00010922,2]
[380318970,1755669032571,-167.11498613,0.00010933,2]
[380318972,1755669032580,-167.11498613,0.00010944,2]
[380318974,1755669032590,-167.11498613,0.00010955,2]
[380318975,1755669032599,-87.3804264,0.00010966,2]
[380318978,1755669032611,-79.73455973,0.00010966,2]
[380318980,1755669032620,-167.11498613,0.00010977,2]
[380318982,1755669032629,-150.0,0.00010986,2]
[380318984,1755669032639,-150.0,0.00010986,2]
[380318986,1755669032649,-150.0,0.00010986,2]
[380318988,1755669032660,-150.0,0.00010986,2]
[380318990,1755669032670,-150.0,0.00010986,2]
[380318992,1755669032686,-156.68343623,0.00010986,2]
[380318994,1755669032705,-150.0,0.00010986,2]
[380318996,1755669032721,-289.61338827,0.00010986,2]
[380318998,1755669032731,-167.11498613,0.00010988,2]
[380319000,1755669032740,-322.6107,0.00010993,2]
[380319002,1755669032750,-151.0,0.00010993,2]
[380319004,1755669032759,-160.0,0.00010993,2]
[380319006,1755669032768,-151.0,0.00010993,2]
[380319008,1755669032778,-151.0,0.00010993,2]
[380319009,1755669032787,-151.0,0.00010993,2]
[380319011,1755669032796,-555.46486384,0.00010998,2]
[380319013,1755669032805,-310.74934373,0.00010998,2]
[380319015,1755669032815,-500.0,0.00010998,2]
[380319017,1755669032824,-554.33428775,0.00010998,2]
[380319018,1755669032834,-4142.1469445,0.00010999,2]
[380319019,1755669032843,-120960.6439403,0.00010999,2]
[380319020,1755669032852,-843.2261924,0.00010999,2]
[380319021,1755669032861,-1230.0322837,0.00010999,2]
[380319022,1755669032871,-1697.2125353,0.00010999,2]
[380319023,1755669032880,-858.91,0.00010999,2]
[380319024,1755669032889,-150.0,0.00010999,2]
[380319025,1755669032898,-150.0,0.00010999,2]
[380319026,1755669032908,-167.11498613,0.00010999,2]
[380319027,1755669032917,-150.0,0.00010999,2]
[380319028,1755669032926,-150.0,0.00010999,2]
[380319029,1755669032935,-150.0,0.00010999,2]
[380319030,1755669032944,-150.0,0.00010999,2]
[380319031,1755669032954,-150.45270775,0.00010999,2]
[380319032,1755669032963,-500.0,0.00010999,2]
[380319033,1755669032972,-185.26202345,0.00010999,2]
[380319034,1755669032982,-167.71678652,0.00010999,2]
[380319035,1755669032992,-173.69270327,0.00010999,2]
[380319036,1755669033002,-500.0,0.00010999,2]
[380319037,1755669033011,-500.0,0.00010999,2]
[380319038,1755669033020,-486.17343395,0.00010999,2]
[380319039,1755669033030,-500.0,0.00010999,2]
[380319040,1755669033039,-500.0,0.00010999,2]
[380319041,1755669033049,-3480.39316892,0.00011,2]
[380319042,1755669033106,-3681.83525597,0.00011,2]
[380319043,1755669033174,-122925.07456919,0.00011,2]
[380319088,1755669038833,-119912.69700592,0.00011,2]
[380319090,1755669038843,-1741.0,0.00011,2]
[380319092,1755669038852,-301.45157035,0.00011,2]
[380319094,1755669038862,-5498153.94922228,0.00011,2]
[380319096,1755669038871,-293113.51,0.00011,2]
[380319098,1755669038880,-15862.85,0.00011,2]
[380319099,1755669038889,-1095432.79073573,0.00011,2]
[380319103,1755669038912,-659.17227315,0.00011,2]
[380319105,1755669038923,-101391.96782906,0.00011,2]
[380319195,1755669039981,-17881.3410423,0.00011,2]
[380319206,1755669040103,-1325.93961403,0.00011,2]
[380319208,1755669040115,-1867.34186428,0.00011,2]
[380319227,1755669040277,-7148.67782959,0.00011,2]
[380319229,1755669040288,-28957.5,0.00011,2]
[380319665,1755669045912,-13043.69999989,0.00011,2]
[380319666,1755669046038,-4700.31827298,0.00011,2]
[380319672,1755669189834,-151.0,0.00010248,2]
[380319673,1755669193361,-849.952143,0.00010248,2]
[380319674,1755669195396,-1029.883528,0.00010248,2]
[380319675,1755669197999,-151.0,0.00010248,2]
[380319676,1755669208901,-541.977962,0.00010248,2]
[380319677,1755669210949,-262.957459,0.00010248,2]
[380319678,1755669212686,-28.178908,0.00010248,2]
[380319679,1755669212708,-122.821092,0.000107,2]
[380319680,1755669214948,-27.178908,0.000107,2]
[380319681,1755669214972,-123.821092,0.0001089,2]
[380319682,1755669218587,-151.0,0.0001089,2]
[380319683,1755669221035,-151.0,0.0001089,2]
[380319684,1755669222722,-79.561298,0.0001089,2]
[380319685,1755669295826,-153.44,0.00010111,2]
[380319686,1755669310896,-153.44,0.00010139,2]
[380319687,1755669310921,-82.082223,0.00010168,2]
[380319688,1755669312091,-71.357777,0.00010168,2]
[380319689,1755669312115,-153.44,0.00010197,2]
[380319690,1755669312141,-78.738855,0.00010226,2]
[380319691,1755669313706,-74.701145,0.00010226,2]
[380319692,1755669313756,-153.44,0.00010254,2]
[380319693,1755669313783,-271.858855,0.00010845,2]
[380319694,1755669316195,-151.0,0.00010165,2]
[380319695,1755669317872,-205.89,0.00010165,2]
[380319696,1755669317898,-291.677148,0.00010845,2]
[380319698,1755669388585,-162.0,0.00010229,2]
[380319699,1755669425355,-370.31638,0.00010238,2]
[380319700,1755669427855,-151.0,0.00010238,2]
[380319701,1755669429338,-250.0,0.00010215,2]
[380319702,1755669429364,-208.382664,0.00010238,2]
[380319703,1755669432519,-262.957459,0.00010238,2]
[380319704,1755669434754,-7.343497,0.00010238,2]
[380319705,1755669580008,-159.2758272,0.000108,2]
[380319709,1755669687140,-309.2476938,0.00010208,2]
[380319710,1755669689429,-228.0323062,0.00010208,2]
[380319711,1755669689452,-34.9251528,0.0001089,2]
[380319712,1755669693459,-116.0748472,0.0001089,2]
[380319713,1755669829519,170.0,0.00010152,7]
[380319714,1755669859178,-581.998467,0.00010148,2]
[380319715,1755669860860,-151.0,0.00010148,2]
[380319716,1755669863351,-280.733598,0.00010148,2]
[380319717,1755669864519,-151.0,0.00010148,2]
[380319718,1755669867054,-151.0,0.00010148,2]
[380319720,1755669871092,-303.536632,0.00010148,2]
[380319721,1755669875667,-49.471303,0.00010148,2]
[380319722,1755669875692,-101.528697,0.000108,2]
[380319723,1755669878014,-90.54323218,0.000108,2]
[380319725,1755669935074,-151.0,0.00010139,2]
[380319726,1755669937053,-151.0,0.00010139,2]
[380319727,1755669939652,-151.0,0.00010139,2]
[380319728,1755669943755,-151.0,0.00010139,2]
[380319729,1755669948151,-500.0,0.00010139,2]
[380319730,1755669949702,-151.0,0.00010139,2]
[380319731,1755669951989,-151.0,0.00010139,2]
[380319732,1755669956024,-226.476712,0.00010129,2]
[380319733,1755669958382,-151.0,0.00010129,2]
[380319734,1755669962308,-413.453288,0.00010129,2]
[380319735,1755669962332,-168.545179,0.00010139,2]
[380319736,1755669965423,-262.957459,0.00010139,2]
[380319737,1755669966817,-151.0,0.00010139,2]
[380319738,1755669969301,-151.0,0.00010139,2]
[380319739,1755669971727,-204.747362,0.00010139,2]
[380319740,1755669971764,-170.54,0.00010395,2]
[380319741,1755669971785,-83.095302,0.0001089,2]
[380319742,1755669973936,-67.904698,0.0001089,2]
[380319743,1755669973960,-152.17377453,0.0001089,2]
[380319745,1755670045825,-629.87367047,0.00010115,2]
[380319746,1755670051939,-151.0,0.00010115,2]
[380319747,1755670052761,-3554.5154565,0.00010115,2]
[380319748,1755670053696,-60.94087303,0.00010115,2]
[380319753,1755670232198,-418.54375762,0.00010896,2]
[380319754,1755670232253,-774.9071884,0.00010896,2]
[380319755,1755670232320,-6.54905398,0.00010896,2]
[380319756,1755670232329,-11148.55612206,0.00010897,2]
[380319757,1755670232378,-2084.68811941,0.00010897,2]
[380319758,1755670232389,-1068.82756675,0.00010897,2]
[380319759,1755670232400,-2269.00775039,0.00010897,2]
[380319766,1755670232552,-151.0,0.00010896,2]
[380319768,1755670232561,-1508.20063078,0.00010897,2]
[380319776,1755670238178,-502.35931864,0.00010897,2]
[380319777,1755670238191,-1212.18063696,0.00010897,2]
[380319778,1755670238202,-2902.18903596,0.00010897,2]
[380319779,1755670238212,-1704.05533996,0.00010897,2]
[380319780,1755670238226,-1534.25623769,0.00010897,2]
[380319781,1755670238236,-197.47695596,0.00010899,2]
[380319782,1755670238245,-2165.45882784,0.000109,2]
[380319783,1755670238254,-2165.45882784,0.000109,2]
[380319784,1755670238263,-1227.95688612,0.000109,2]
[380319785,1755670238272,-169.92416136,0.000109,2]
[380319786,1755670238281,-1000.0,0.000109,2]
[380319787,1755670238291,-505.3824,0.0001092,2]
[380319788,1755670238301,-150.0,0.00010992,2]
[380319789,1755670238310,-160.0,0.00010993,2]
[380319790,1755670238319,-322.6107,0.00010993,2]
[380319791,1755670238328,-53.22935071,0.00010993,2]
[380319792,1755670238471,-593.43047663,0.00010993,2]
[380319793,1755670238481,-277.35679052,0.00010993,2]
[380319794,1755670238491,-151.34366034,0.00010993,2]
[380319795,1755670238500,-721.84898779,0.00010999,2]
[380319796,1755670238547,-202.38892331,0.00010999,2]
[380319797,1755670238556,-206.2253531,0.00010999,2]
[380319798,1755670238565,-252.21381532,0.00010999,2]
[380319799,1755670238574,-4504.4185124,0.00010999,2]
[380319800,1755670238583,-823.13,0.00010999,2]
[380319802,1755670238593,-264.92536003,0.00010999,2]
[380319804,1755670238603,-208.68684888,0.00010999,2]
[380319806,1755670238612,-250.84674971,0.00010999,2]
[380319808,1755670238621,-150.99,0.00010999,2]
[380319810,1755670238630,-299.99,0.00010999,2]
[380319813,1755670238640,-1396.0,0.00011,2]
[380319815,1755670238649,-1914.81869075,0.00011,2]
[380319818,1755670238660,-8323.53164302,0.00011,2]
[380319821,1755670238684,-544.4,0.00011,2]
[380319822,1755670238695,-302.70771631,0.00011,2]
[380319823,1755670238706,-554.41360352,0.00011,2]
[380319825,1755670238717,-837.64,0.00011,2]
[380319827,1755670238728,-3680.38125932,0.00011,2]
[380319840,1755670240510,-2134.99433772,0.00011,2]
[380319843,1755670240521,-11570.0,0.00011,2]
[380319845,1755670240532,-6459.79943999,0.00011,2]
[380319909,1755670241111,-431.23318223,0.00011,2]
[380319919,1755670241204,-1675.05793492,0.00011,2]
[380319970,1755670243279,-7273.39999437,0.00011,2]
[380319971,1755670243559,-3109.80001,0.00011,2]
[380319972,1755670243571,-16080.24449354,0.00011,2]
[380319978,1755670246161,-792.06961951,0.000109,2]
[380319979,1755670246171,-7198.52381725,0.00011,2]
[380319980,1755670246183,-4176.61611355,0.00011,2]
[380319981,1755670246255,-432018.18177188,0.00011,2]
[380319982,1755670246302,-5456.4000003,0.00011,2]
[380319983,1755670246348,-10910.09999128,0.00011,2]
[380319984,1755670313336,-151.0,0.00010197,2]
[380319985,1755670316099,-151.0,0.00010197,2]
[380319986,1755670317771,-581.998467,0.00010197,2]
[380319987,1755670320680,-151.0,0.00010197,2]
[380319988,1755670323287,-151.0,0.00010197,2]
[380319989,1755670325073,-151.0,0.00010197,2]
[380319990,1755670328941,-379.031533,0.00010197,2]
[380319992,1755670361000,-151.0,0.00010813,2]
[380319993,1755670392577,-151.0,0.00010024,2]
[380319994,1755670395192,-7375.69262165,0.00010024,2]
[380319995,1755670396891,-468.523521,0.00010024,2]
[380319996,1755670399091,-458.382664,0.00010024,2]
[380319997,1755670401875,-151.0,0.00010024,2]
[380319998,1755670404098,-500.0,0.00010024,2]
[380319999,1755670406676,-819.95862593,0.00010024,2]
[380320000,1755670408279,-151.0,0.00010024,2]
[380320001,1755670409836,-581.998467,0.00010024,2]
[380320002,1755670414845,-152.416748,0.00010024,2]
[380320003,1755670417106,-178.696415,0.00010024,2]
[380320004,1755670420889,-303.536632,0.00010024,2]
[380320005,1755670422637,-541.977962,0.00010024,2]
[380320006,1755670425921,-906.085885,0.00010024,2]
[380320007,1755670429569,-1029.883528,0.00010024,2]
[380320008,1755670430662,-500.0,0.00010024,2]
[380320009,1755670432882,-151.0,0.00010024,2]
[380320010,1755670435149,-498.14750469,0.00010024,2]
[380320011,1755670436837,-151.0,0.00010024,2]
[380320012,1755670440526,-151.0,0.00010024,2]
[380320013,1755670445336,-1029.883528,0.00010024,2]
[380320014,1755670449268,-458.382664,0.00010024,2]
[380320015,1755670452097,-151.0,0.00010024,2]
[380320016,1755670455016,-7559.8,0.00010024,2]
[380320017,1755670457762,-170.92394059,0.00010024,2]
[380320018,1755670461020,-449.9275454,0.00010024,2]
[380320020,1755670570529,154.26924508,0.00021,90]
[380320021,1755670595834,-800.0,9.972e-05,2]
[380320022,1755670595865,-449.9275454,0.00010023,2]
[380320023,1755670595897,-1200.0,0.00010023,2]
[380320024,1755670595925,-150.0,0.00010023,2]
[380320025,1755670595952,-300.0,0.00010023,2]
[380320026,1755670596101,-1309.1758225,0.00010024,2]
[380320027,1755670603498,-69164.35278219,0.00010024,2]
[380320028,1755670610902,-17881.3410423,0.00010024,2]
[380320029,1755670840291,170.0,9.884e-05,7]
[380320030,1755671143862,-413.28,9.868e-05,2]
[380320031,1755671150762,-447.04,9.868e-05,2]
[380320032,1755671158625,-580.0,9.868e-05,2]
[380320035,1755671218900,150.0,9.5e-05,2]
[380320055,1755671431459,-250.0,9.815e-05,2]
[380320056,1755671431469,-1747.74885905,9.824e-05,2]
[380320057,1755671431760,-1166.76456379,9.824e-05,2]
[380320077,1755671431991,-4645.28657716,9.824e-05,2]
[380320079,1755671432002,-1754.43916761,9.868e-05,2]
[380320081,1755671432013,-359.76083239,9.868e-05,2]
[380320083,1755671432023,-250.0,9.879e-05,2]
[380320085,1755671432033,-163.74,9.89e-05,2]
[380320087,1755671432042,-580.0,0.00010023,2]
[380320089,1755671432052,-74.3714752,0.00010024,2]
[380320091,1755671432064,-173.1785248,0.00010024,2]
[380320093,1755671432073,-342.54409204,0.00010042,2]
[380320106,1755671432231,-566.91452001,0.00010042,2]
[380320114,1755671437771,-790.39138795,0.00010042,2]
[380320116,1755671437781,-1000.0,0.00010051,2]
[380320117,1755671437790,-163.55,0.00010112,2]
[380320119,1755671437799,-1411.78,0.00010116,2]
[380320121,1755671437808,-230.97291998,0.00010429,2]
[380320123,1755671437818,-180.91,0.00010448,2]
[380320125,1755671437827,-150.0,0.00010474,2]
[380320127,1755671437836,-27046.15,0.00010475,2]
[380320129,1755671437845,-7585.5,0.00010475,2]
[380320131,1755671437855,-1077.93,0.000105,2]
[380320133,1755671437864,-165.94,0.000105,2]
[380320135,1755671437874,-322.6107,0.00010521,2]
[380320137,1755671437883,-160.0,0.00010521,2]
[380320139,1755671437893,-277.35679052,0.00010521,2]
[380320141,1755671437904,-219.0,0.00010525,2]
[380320143,1755671437913,-237.24288016,0.00010528,2]
[380320145,1755671437933,-537.0,0.000106,2]
[380320147,1755671437946,-150.0,0.0001068,2]
[380320149,1755671437956,-935.8,0.00010686,2]
[380320151,1755671437966,-1000.0,0.0001071,2]
[380320154,1755671437976,-1000.0,0.00010726,2]
[380320156,1755671437985,-1000.0,0.00010739,2]
[380320158,1755671437994,-150.0,0.00010747,2]
[380320160,1755671438004,-1000.0,0.00010765,2]
[380320162,1755671438014,-880.38770423,0.0001078,2]
[380320164,1755671438023,-1425.0,0.00010781,2]
[380320166,1755671438032,-150.0,0.00010782,2]
[380320168,1755671438041,-1000.0,0.00010787,2]
[380320170,1755671438050,-222.30414867,0.00010793,2]
[380320172,1755671438059,-1425.0,0.00010794,2]
[380320173,1755671438069,-150.0,0.00010795,2]
[380320175,1755671438078,-150.0,0.00010805,2]
[380320178,1755671438087,-3457.1720146,0.00010808,2]
[380320179,1755671438096,-150.0,0.00010808,2]
[380320182,1755671438105,-1000.0,0.00010822,2]
[380320184,1755671438115,-1000.0,0.00010825,2]
[380320186,1755671438124,-1425.0,0.00010826,2]
[380320188,1755671438134,-1000.0,0.00010828,2]
[380320190,1755671438144,-1425.0,0.00010833,2]
[380320192,1755671438154,-1000.0,0.00010847,2]
[380320194,1755671438164,-1000.0,0.00010847,2]
[380320196,1755671438174,-1000.0,0.00010852,2]
[380320198,1755671438184,-1000.0,0.00010853,2]
[380320200,1755671438193,-250.0,0.00010855,2]
[380320202,1755671438202,-250.0,0.00010855,2]
[380320204,1755671438211,-1425.0,0.00010858,2]
[380320206,1755671438220,-469.77994718,0.00010861,2]
[380320208,1755671438229,-150.0,0.00010862,2]
[380320210,1755671438238,-150.0,0.00010865,2]
[380320212,1755671438247,-1000.0,0.00010868,2]
[380320214,1755671438257,-150.0,0.0001087,2]
[380320216,1755671438266,-777.69585133,0.00010874,2]
[380320218,1755671438275,-500.0,0.00010887,2]
[380320220,1755671438283,-500.0,0.00010887,2]
[380320222,1755671438292,-1000.0,0.00010894,2]
[380320224,1755671438302,-9651.7544,0.000109,2]
[380320226,1755671438311,-1000.0,0.000109,2]
[380320228,1755671438323,-1000.0,0.000109,2]
[380320230,1755671438332,-150.0,0.000109,2]
[380320232,1755671438341,-500.0,0.000109,2]
[380320234,1755671438350,-221.52780352,0.000109,2]
[380320236,1755671438359,-500.0,0.000109,2]
[380320238,1755671438369,-1052.5344738,0.000109,2]
[380320240,1755671438378,-166.7646,0.000109,2]
[380320242,1755671438387,-168.14254354,0.000109,2]
[380320244,1755671438397,-679.6966454,0.000109,2]
[380320246,1755671438406,-3002.94567494,0.000109,2]
[380320248,1755671438415,-500.0,0.00010904,2]
[380320250,1755671438424,-500.0,0.00010904,2]
[380320252,1755671438434,-1000.0,0.00010905,2]
[380320254,1755671438444,-150.0,0.00010913,2]
[380320256,1755671438454,-1000.0,0.00010918,2]
[380320258,1755671438463,-777.69585133,0.00010922,2]